Cogmind - Beta 15 @@@ ROGUE MODE // 2025.08.16 @ 22:00:27 Player: StaticNoob Result: Destroyed by YH-UFA(z) with Makeshift Shrapnel Gun Performance ------------- Evolutions (3) 1500 Regions Visited (9) 1800 Robots Destroyed (133) 665 Value Destroyed (3275) 3275 Prototype IDs (49) 980 Alien Tech Used (0) 0 Bonus (474) 474 TOTAL SCORE: 8694 Bonus ------- Aligned with FarCom 300 Met Imprinter 300 Friendly Fire -126 Cogmind --------- Core Integrity 0/700 Matter 162/300 Energy 59/100 System Corruption 6% Temperature Cool (0) Movement Walking (140) Location -7/Zion Parts ------- > --- POWER (2) -------- (None) > --- PROPULSION (3) --- Makeshift Leg Makeshift Leg > --- UTILITY (6) ------ High-capacity Storage Unit Terrain Scan Processor Makeshift Terrain Scan Processor > --- WEAPON (2) ------- (None) > --- INVENTORY (20) --- Aluminum Leg Makeshift Leg High-capacity Matter Pod (200) Advanced Weapon Cycler Advanced Transmission Jammer Improved System Guard Thief Drone Bay (2/3) Hacking Drone Bay (1/1) AS-neutralizer No. 17b Lightning Gun Heavy Riot Gun Heavy Ion Cannon Heavy Ion Cannon Heavy Ion Cannon Advanced EMP Blaster Peak State ------------ > --- POWER ------------ Cold Fusion Reactor > --- PROPULSION ------- Aluminum Leg Advanced Myomer Leg Advanced Myomer Leg > --- UTILITY ---------- Improved Heat Sink High-capacity Storage Unit Experimental Core Analyzer Advanced Weapon Cycler Hardened Medium Armor Plating > --- WEAPON ----------- 8R-AWN's Boregun 8R-AWN's Boregun > --- INVENTORY -------- Improved Heat Sink High-capacity Matter Pod Advanced Transmission Jammer 8R-AWN's Armor/EX Shield Generator Improved System Guard Thief Drone Bay AS-neutralizer No. 17b Field Laser EMP Blaster [Rating: 74] Favorites ----------- Power Enhanced Nuclear Core Engine Hybrid Deuterium Engine Power Core Enhanced Nuclear Core Reactor Cold Fusion Reactor Propulsion VSS Leg Treads Light Treads Leg VSS Leg Wheel Wheel Hover Unit Makeshift Hover Unit Utility Improved Heat Sink Device Improved Heat Sink Storage High-capacity Storage Unit Processor Experimental Core Analyzer Protection Improved Utility Shielding Weapon High-powered Field Laser Energy Gun High-powered Field Laser Energy Cannon Heavy Ion Cannon Ballistic Gun 8R-AWN's Boregun Launcher EMP Blaster Impact Weapon Makeshift Hammer Slashing Weapon Longsword +1 Build | -11 -10 -10 -10 -9 -8 -7 -7 -7 -7 ------- Run | Yrd Mat Min Exi Min Mat Fac Low Low Zio Slots Evolved 6 | . . . . . 4 2 . . . Power 1 | . . . . . . 1 . . . Propulsion 1 | . . . . . 1 . . . . Utility 4 | . . . . . 3 1 . . . Weapon . | . . . . . . . . . . Parts Attached 89 | 5 9 1 16 . 20 10 3 . 25 Power 10 | 1 1 . 3 . . 3 . . 2 Engine 5 | 1 1 . 1 . . 1 . . 1 Core 4 | . . . 1 . . 2 . . 1 Reactor 1 | . . . 1 . . . . . . Propulsion 25 | 2 3 . 3 . 5 2 1 . 9 Treads 3 | 2 1 . . . . . . . . Leg 19 | . . . 2 . 5 2 1 . 9 Wheel 2 | . 2 . . . . . . . . Hover 1 | . . . 1 . . . . . . Flight . | . . . . . . . . . . Utility 27 | 1 3 1 4 . 9 4 2 . 3 Device 15 | . 2 1 3 . 3 3 2 . 1 Storage 4 | 1 1 . 1 . 1 . . . . Processor 5 | . . . . . 2 1 . . 2 Hackware . | . . . . . . . . . . Protection 3 | . . . . . 3 . . . . Artifact . | . . . . . . . . . . Weapon 27 | 1 2 . 6 . 6 1 . . 11 Energy Gun 12 | . 2 . . . 6 . . . 4 Energy Cannon 3 | . . . 1 . . 1 . . 1 Ballistic Gun 4 | 1 . . 2 . . . . . 1 Ballistic Cannon . | . . . . . . . . . . Launcher 6 | . . . 2 . . . . . 4 Special Weapon . | . . . . . . . . . . Impact Weapon 1 | . . . . . . . . . 1 Slashing Weapon 1 | . . . 1 . . . . . . Piercing Weapon . | . . . . . . . . . . Special Melee Weapon . | . . . . . . . . . . Unidentified Prototypes 16 | . . 1 7 . 5 . . . 3 Parts Lost 47 | . 3 . 4 3 8 4 1 . 24 Power 8 | . 1 . 1 2 . . . . 4 Propulsion 17 | . 1 . 2 . 2 3 1 . 8 Utility 9 | . . . . . 3 1 . . 5 Weapon 13 | . 1 . 1 1 3 . . . 7 Highest Loss Streak 9 | . 1 . 3 3 3 2 1 . 9 To Critical Strikes 1 | . . . . . . . . . 1 Average Backups 15 | . 4 11 12 15 15 18 19 20 18 Power . | . . 1 1 . . . 1 1 . Propulsion 1 | . . . . 1 . 2 1 2 1 Utility 6 | . 2 7 7 10 8 7 6 6 6 Weapon 6 | . 1 3 3 3 5 8 11 11 9 Tool/Special . | . . . . . . . . . . Unused Backups 19 | . 1 . 7 . . 5 . . 6 Power 3 | . . . 3 . . . . . . Propulsion . | . . . . . . . . . . Utility 9 | . 1 . 4 . . 1 . . 3 Weapon 7 | . . . . . . 4 . . 3 Tool/Special . | . . . . . . . . . . Average Slot Usage (%) 94 | . 85 100 91 97 99 99 100 100 90 Engine 5 | . 7 14 7 3 . 4 7 7 6 Core 3 | . . . 3 1 . 7 7 7 6 Reactor 2 | . . . 2 8 9 1 . . . Treads 1 | . 17 . . . . . . . . Leg 19 | . . . 15 28 26 22 23 23 21 Wheel 2 | . 7 28 5 . . . . . . Device 17 | . 12 14 14 14 17 21 23 23 18 Storage 9 | . 14 14 12 14 9 7 7 7 7 Processor 8 | . . . . . 9 12 15 15 13 Protection 1 | . . . . . 8 2 . . . Energy Gun 9 | . 20 28 5 10 15 7 7 7 2 Energy Cannon 2 | . . . 2 11 1 6 7 7 . Ballistic Gun 3 | . 4 . 14 . . . . . . Launcher 2 | . . . . 3 . . . . 10 Peak Build Rating 74 | 5 13 15 55 43 74 74 62 62 64 Average Rating 49 | 3 9 11 39 42 66 63 59 62 54 On Entrance 36 | . 5 11 12 40 43 66 59 62 62 Naked Turns . | . . . . . . . . . . Heaviest Build 77 | 10 30 30 55 65 71 77 73 73 73 Greatest Support 80 | 40 40 20 60 60 80 77 39 39 60 Greatest Overweight (x) 5 | . 2 1 3 1 1 1 1 1 5 Average Overweight (x) . | . . 1 . . . . 1 1 1 Largest Inventory Capacity 20 | 8 15 15 20 20 20 20 20 20 20 Average Capacity 18 | 6 12 15 15 20 20 20 20 20 20 Most Carried 20 | . 10 12 19 19 20 20 20 20 20 Average Carried 15 | . 4 11 12 17 17 19 19 20 18 Final Capacity 20 | 8 15 15 20 20 20 20 20 20 20 Final Carried 20 | . 10 12 19 17 20 20 20 20 15 Class Distribution -------------------- 81% | Mutant 18% | Scavenger-Mutant Dominant Class ---------------- Mutant | -10/Materials Scavenger-Mutant | -10/Mines Mutant | -10/Exiles Mutant | -9/Mines Scavenger-Mutant | -8/Materials Mutant | -7/Factory Mutant | -7/Lower Caves Mutant | -7/Lower Caves Mutant | -7/Zion Resources | -11 -10 -10 -10 -9 -8 -7 -7 -7 -7 ----------- Run | Yrd Mat Min Exi Min Mat Fac Low Low Zio Matter Collected 2390 | 168 306 10 738 257 465 101 38 . 307 Remotely . | . . . . . . . . . . Salvage Created 4876 | . 518 128 337 347 1662 668 313 74 829 Parts 309 | . 32 3 40 29 92 37 9 7 60 Haulers Intercepted 6 | . 1 . . . 5 . . . . Recyclers Shooed 4 | . 2 1 . 1 . . . . . Parts Field Recycled . | . . . . . . . . . . Retrieved Matter . | . . . . . . . . . . Parts Self-Destructed 16 | . . . . . . . 8 7 1 Prevented . | . . . . . . . . . . Kills | -11 -10 -10 -10 -9 -8 -7 -7 -7 -7 ------- Run | Yrd Mat Min Exi Min Mat Fac Low Low Zio Combat Hostiles Destroyed 85 | . 12 1 4 12 28 11 7 3 7 Melee 1 | . . . 1 . . . . . . Guns 46 | . 12 1 . 1 19 6 2 3 2 Cannons 20 | . . . . 5 4 5 5 . 1 AOE 13 | . . . 3 6 4 . . . . Classes Destroyed 15 | . 4 1 3 1 2 2 . . 2 Builder 5 | . . . . 1 3 1 . . . Hauler 6 | . 1 . . . 5 . . . . Recycler 5 | . . 1 . 2 2 . . . . Turret 1 | . . . 1 . . . . . . Watcher 9 | . 3 . . . 4 2 . . . Swarmer 31 | . 3 . . 12 10 . 3 3 . Grunt 30 | . 9 1 . . 10 7 3 . . Brawler 1 | . . . . . . 1 . . . Duelist 2 | . . . . . 1 . 1 . . Sentry 9 | . . . . . 7 2 . . . Programmer 1 | . . . . . . 1 . . . Zionite 24 | . . . 2 . . . . . 22 Tinkerer 3 | . . . . . . . . . 3 Assembled 3 | . . . 3 . . . . . . Thug 1 | . . . . . . . . . 1 Mutant 5 | . . . . . . . . . 5 Best Kill Streak 10 | . 5 2 4 10 5 6 4 3 8 Combat Bots Only 8 | . 4 1 3 8 4 6 4 3 4 Max Kills in Single Turn 2 | . 1 1 1 2 2 1 1 1 2 Gunslinging 1 | . . . . . 1 . . . . Exploded 2 | . . . 1 2 1 . . . . Melee 1 | . . . 1 . . . . . . Uniques/NPCs Destroyed 4 | . . . 3 . . . . . 1 8R-AWN (-10/Exiles) EX-HEX (-10/Exiles) EX-DEC (-10/Exiles) Imprinter (-7/Zion) Combat | -11 -10 -10 -10 -9 -8 -7 -7 -7 -7 -------- Run | Yrd Mat Min Exi Min Mat Fac Low Low Zio Hostile Shots Fired 601 | . 83 3 23 37 110 94 34 9 208 Missed 199 | . 29 . 7 15 28 37 9 1 73 Hits 402 | . 54 3 16 22 82 57 25 8 135 Melee 31 | . . . 1 . 8 2 1 . 19 Projectile 371 | . 54 3 15 22 74 55 24 8 116 Critical Strikes 16 | . . . 1 . 4 2 3 . 6 Actively Blocked 1 | . . . . . . 1 . . . Part Disruptions 1 | . . . . . . . . . 1 Damage Taken 6392 | . 615 32 556 306 1393 665 397 119 2309 Core 992 | . 85 . 31 24 151 66 87 31 517 Absorbed by Shields . | . . . . . . . . . . Redirected to Shielding 62 | . . . . . 40 22 . . . Core Remaining (%) 72 | 100 . . . 44 72 . . . . Volleys Fired 395 | . 79 5 57 22 110 38 15 4 65 Largest 2 | . 2 2 2 2 2 2 2 2 2 Hottest 145 | . 105 105 100 125 140 135 135 135 145 Shots Fired 666 | . 105 10 102 34 207 67 30 8 103 Gun 504 | . 105 10 81 12 177 29 15 4 71 Cannon 117 | . . . 8 13 21 38 15 4 18 Launcher 45 | . . . 13 9 9 . . . 14 Special . | . . . . . . . . . . Kinetic 140 | . 53 . 74 . 12 . . . 1 Thermal 479 | . 52 10 15 25 186 67 30 8 86 Explosive 9 | . . . . . . . . . 9 Electromagnetic 38 | . . . 13 9 9 . . . 7 Robot Hit Streak 16 | . 8 12 6 4 11 10 9 4 16 Robot Miss Streak 5 | . 4 . 4 5 5 5 1 1 5 Penetration Max 1 | . . . 1 . 1 . . . . Secondary Targets 4 | . 1 . . . 2 . . . 1 Max Gunslinging Chain 1 | . 1 . . . 1 . . . 1 Shots Hit Robots 408 | . 62 9 55 14 128 45 23 4 68 Core Hits 207 | . 26 4 22 16 61 24 10 3 41 Critical Kills 5 | . . . 2 . 2 . . . 1 Critical Parts Destroyed 7 | . . . 5 . 1 . . . 1 Critical Strikes 38 | . 1 . 19 . 12 1 . . 5 Burn 14 | . 1 . . . 9 1 . . 3 Meltdown 1 | . . . . . . . . . 1 Destroy 20 | . . . 17 . 3 . . . . Smash 1 | . . . . . . . . . 1 Sever 2 | . . . 2 . . . . . . Melee Attacks 10 | . . . 7 . . . . . 3 Impact 3 | . . . . . . . . . 3 Slashing 7 | . . . 7 . . . . . . Piercing . | . . . . . . . . . . Sneak Attacks . | . . . . . . . . . . Combat Hostiles . | . . . . . . . . . . Follow-up Attacks . | . . . . . . . . . . Damage Inflicted 10170 | . 884 117 1396 434 2784 1228 579 95 2653 Guns 5801 | . 884 117 798 59 2216 486 249 68 924 Cannons 1871 | . . . 23 139 282 742 330 27 328 Explosions 2063 | . . . 258 236 286 . . . 1283 Melee 435 | . . . 317 . . . . . 118 Ramming . | . . . . . . . . . . Kinetic 1335 | . 392 . 785 . 145 . . . 13 Thermal 6377 | . 492 117 36 232 2359 1228 579 95 1239 Explosive 719 | . . . . . . . . . 719 Electromagnetic 1304 | . . . 258 202 280 . . . 564 Impact 118 | . . . . . . . . . 118 Slashing 317 | . . . 317 . . . . . . Piercing . | . . . . . . . . . . Highest Corruption 6 | . . . . . . 1 1 1 6 Average Corruption 1 | . . . . . . 1 1 1 5 Corruption Purged . | . . . . . . . . . . Corruption Blocked . | . . . . . . . . . . Effects 17 | . . . . . . 3 2 1 11 Message Errors 3 | . . . . . . 1 . . 2 Matter Fused 6 | . . . . . . 1 1 1 3 Heat Flow Errors 2 | . . . . . . . 1 . 1 Energy Discharges 1 | . . . . . . . . . 1 Data Loss (minor) 3 | . . . . . . . . . 3 Data Loss (major) 1 | . . . . . . 1 . . . Weapon Failures 1 | . . . . . . . . . 1 Overload Shots . | . . . . . . . . . . Overflow Damage 192 | . . . 10 3 5 . . 2 172 Projectiles 31 | . . . . . . . . 2 29 Explosions 100 | . . . 10 3 5 . . . 82 Melee 61 | . . . . . . . . . 61 Knockbacks 2 | . . . . . . . . . 2 Impact 2 | . . . . . . . . . 2 Kinetic . | . . . . . . . . . . Secondary . | . . . . . . . . . . Self-Inflicted Damage 342 | . . . 91 123 . . . . 128 Shots 14 | . . . 5 5 . . . . 4 Rammed . | . . . . . . . . . . Targets Rammed . | . . . . . . . . . . Kicked . | . . . . . . . . . . Crushed . | . . . . . . . . . . Highest Temperature 409 | . 8 18 175 . 409 3 196 . 401 Average Temperature 97 | . 4 7 65 . 87 3 64 . 132 Received Heat Transfer 1505 | . 303 18 20 . 486 276 234 . 168 Effects 4 | . . . . . 1 . . . 3 Energy Bleed 1 | . . . . . 1 . . . . Matter Decay 1 | . . . . . . . . . 1 Short Circuit 1 | . . . . . . . . . 1 Damage (minor) 1 | . . . . . . . . . 1 Siege Activations . | . . . . . . . . . . Martial Activations . | . . . . . . . . . . Shielding Activations . | . . . . . . . . . . Robots Disrupted . | . . . . . . . . . . Combat Hostiles . | . . . . . . . . . . Robots Corrupted 6 | . . . 1 . . . . . 5 Combat Hostiles 4 | . . . . . . . . . 4 Parts Fried 10 | . . . . . 3 . . . 7 Impact Corruptions 3 | . . . . . . . . . 3 Robots Melted 2 | . . . . . 1 . . . 1 Combat Hostiles 1 | . . . . . 1 . . . . Parts Melted 26 | . 2 . . 1 14 3 2 . 4 Heat Transferred 12316 | . 1200 273 119 521 5330 1850 851 148 2024 Parts Sabotaged . | . . . . . . . . . . Parts Stolen . | . . . . . . . . . . Parts Stripped . | . . . . . . . . . . Power Chain Reactions 7 | . . . . 4 2 . . . 1 Alert | -11 -10 -10 -10 -9 -8 -7 -7 -7 -7 ------- Run | Yrd Mat Min Exi Min Mat Fac Low Low Zio Maximum Alert Level 1 | . . . . 1 1 . . . . Low Security (%) 70 | 100 100 100 . 91 20 100 . . . Level 1 29 | . . . . 8 79 . . . . Level 2 . | . . . . . . . . . . Level 3 . | . . . . . . . . . . Level 4 . | . . . . . . . . . . Level 5 . | . . . . . . . . . . High Security . | . . . . . . . . . . Max Security . | . . . . . . . . . . Peak Influence 360 | . 97 30 . 219 360 160 . . . Initial 135 | . . . . . 81 135 . . . Average 122 | . 25 7 . 117 247 66 . . . Influence Increases 2237 | . 340 40 . 309 994 324 160 70 . Destroy 0b10 Robot/C 1480 | . 240 20 . 240 560 220 140 60 . Destroy 0b10 Robot/NC 125 | . 20 5 . 15 70 15 . . . Destroy Leader 310 | . 68 . . 30 128 54 20 10 . Successful Hack 98 | . 12 . . . 57 29 . . . Disable Machine 120 | . . . . 15 105 . . . . Destroy Structure 29 | . . . . 9 14 6 . . . Lose Combat Pursuer 75 | . . 15 . . 60 . . . . Influence Decreases 2237 | . 340 40 . 100 904 585 152 116 . Entered New Map 317 | . . . . . 128 164 15 10 . Time Decay 1580 | . 310 40 . 70 546 381 127 106 . Lost Part 190 | . 30 . . 30 80 40 10 . . Purge Threat 150 | . . . . . 150 . . . . Squads Dispatched 8 | . 4 . . . 1 3 . . . Investigation 1 | . 1 . . . . . . . . Extermination 2 | . . . . . . 2 . . . Reinforcement 5 | . 3 . . . 1 1 . . . Assault . | . . . . . . . . . . Garrison . | . . . . . . . . . . Intercept . | . . . . . . . . . . Searches Triggered . | . . . . . . . . . . Construction Impeded . | . . . . . . . . . . Haulers Reinforced 1 | . . . . . . 1 . . . Active Scanning Responses . | . . . . . . . . . . Cargo Convoy Interrupts . | . . . . . . . . . . Stealth | -11 -10 -10 -10 -9 -8 -7 -7 -7 -7 --------- Run | Yrd Mat Min Exi Min Mat Fac Low Low Zio Distress Signals 8 | . 1 . . . 6 1 . . . Communications Jammed . | . . . . . . . . . . Distress Signals . | . . . . . . . . . . Times Spotted 155 | . 19 2 22 10 44 15 6 3 34 Peak Tracking Total 10 | . 3 2 9 4 4 4 4 3 10 Tactical Retreats 14 | . . 1 8 . 3 . . . 2 Traps | -11 -10 -10 -10 -9 -8 -7 -7 -7 -7 ------- Run | Yrd Mat Min Exi Min Mat Fac Low Low Zio Traps Triggered 5 | . 1 . . . 4 . . . . Indirectly 2 | . . . . . 2 . . . . Trap Hack Attempts . | . . . . . . . . . . Triggered . | . . . . . . . . . . Disarmed . | . . . . . . . . . . Reprogrammed . | . . . . . . . . . . Reused . | . . . . . . . . . . Traps Extracted . | . . . . . . . . . . Installed . | . . . . . . . . . . Triggered . | . . . . . . . . . . Machines | -11 -10 -10 -10 -9 -8 -7 -7 -7 -7 ---------- Run | Yrd Mat Min Exi Min Mat Fac Low Low Zio Machines Disabled 25 | . . . 15 1 7 . . . 2 Max in Single Turn 3 | . . . 3 1 2 . . . 1 Garrison Access 2 | . . . . . 1 1 . . . Machines Repaired . | . . . . . . . . . . Machines Dismantled . | . . . . . . . . . . Machines Sabotaged . | . . . . . . . . . . Overloaded Fab Kills . | . . . . . . . . . . Hacking | -11 -10 -10 -10 -9 -8 -7 -7 -7 -7 --------- Run | Yrd Mat Min Exi Min Mat Fac Low Low Zio Machines Accessed 28 | . 6 2 2 . 8 10 . . . Terminals 17 | . 5 1 . . 7 4 . . . Fabricators . | . . . . . . . . . . Repair Stations 1 | . 1 . . . . . . . . Recycling Units 2 | . . . . . . 2 . . . Scanalyzers 1 | . . . . . . 1 . . . Garrison Access 4 | . . . . . 1 3 . . . Total Hacks 79 | . 25 3 2 . 27 22 . . . Successful 34 | . 6 1 2 . 17 8 . . . Failed 44 | . 18 2 . . 10 14 . . . Catastrophic 5 | . 1 1 . . 1 2 . . . Database Lockouts 1 | . 1 . . . . . . . . Manual 47 | . 14 . 1 . 22 10 . . . Terminals 63 | . 24 2 . . 26 11 . . . Fabricators . | . . . . . . . . . . Repair Stations 1 | . 1 . . . . . . . . Recycling Units 3 | . . . . . . 3 . . . Scanalyzers 1 | . . . . . . 1 . . . Garrison Access 8 | . . . . . 1 7 . . . Terminal Hacks 18 | . 4 1 2 . 9 2 . . . Record 1 | . . . 1 . . . . . . Prototype ID Bank 6 | . 2 . . . 4 . . . . Open Door 1 | . . 1 . . . . . . . Branch Access Points 1 | . . . . . 1 . . . . Unreport Threat 1 | . . . . . 1 . . . . Locate Traps 3 | . 2 . . . 1 . . . . Recall Reinforcements 1 | . . . . . 1 . . . . Zone Layout 3 | . . . . . 1 2 . . . Proto ID Catalog 1 | . . . 1 . . . . . . Fabricator Hacks . | . . . . . . . . . . Repair Station Hacks 1 | . 1 . . . . . . . . Refit 1 | . 1 . . . . . . . . Recycling Unit Hacks . | . . . . . . . . . . Scanalyzer 1 | . . . . . . 1 . . . Insert Component 1 | . . . . . . 1 . . . Garrison Access Hacks 2 | . . . . . 1 1 . . . Seal Access 2 | . . . . . 1 1 . . . Unauthorized Hacks 12 | . 1 . . . 7 4 . . . Terminals 12 | . 1 . . . 7 4 . . . Botnet 4 | . 1 . . . 2 1 . . . Skim 8 | . . . . . 5 3 . . . Fabricators . | . . . . . . . . . . Repair Stations . | . . . . . . . . . . Recycling Units . | . . . . . . . . . . Scanalyzers . | . . . . . . . . . . Garrison Access . | . . . . . . . . . . Data Cores Recovered . | . . . . . . . . . . Used . | . . . . . . . . . . Hacking Detections 21 | . 5 1 . . 7 8 . . . Full Trace Events . | . . . . . . . . . . Feedback Events . | . . . . . . . . . . Feedback Blocked . | . . . . . . . . . . Robot Schematics Acquired 2 | . . . . . . . . . 2 Robots Built . | . . . . . . . . . . Authchips . | . . . . . . . . . . Time . | . . . . . . . . . . Total Robot Build Rating . | . . . . . . . . . . Part Schematics Acquired 15 | . . . . . . . . . 15 Parts Built . | . . . . . . . . . . Authchips . | . . . . . . . . . . Time . | . . . . . . . . . . Total Part Build Rating . | . . . . . . . . . . Parts Repaired . | . . . . . . . . . . Time . | . . . . . . . . . . Parts Recycled . | . . . . . . . . . . Recycled Matter . | . . . . . . . . . . Retrieved Matter . | . . . . . . . . . . Retrieved Components . | . . . . . . . . . . Parts Scanalyzed . | . . . . . . . . . . Part Schematics Acquired . | . . . . . . . . . . Parts Damaged . | . . . . . . . . . . Bothacking | -11 -10 -10 -10 -9 -8 -7 -7 -7 -7 ------------ Run | Yrd Mat Min Exi Min Mat Fac Low Low Zio Used RIF Installer . | . . . . . . . . . . Robots Hacked . | . . . . . . . . . . Non-combat . | . . . . . . . . . . Combat . | . . . . . . . . . . Robot Hacks Applied . | . . . . . . . . . . Relay Couplers Released . | . . . . . . . . . . Fabnet Peak Effective % . | . . . . . . . . . . Robots Rewired . | . . . . . . . . . . Allies Hacked . | . . . . . . . . . . Hacks Repelled . | . . . . . . . . . . Allies | -11 -10 -10 -10 -9 -8 -7 -7 -7 -7 -------- Run | Yrd Mat Min Exi Min Mat Fac Low Low Zio Total Allies 2 | . . 2 . . . . . . . Largest Group 2 | . . 2 2 . . . . . . Highest-Rated Group 49 | . . 49 49 . . . . . . Highest-Rated Ally 31 | . . 31 31 . . . . . . Total Orders . | . . . . . . . . . . Ally Attacks 9 | . . . 9 . . . . . . Total Damage 48 | . . . 48 . . . . . . Kills . | . . . . . . . . . . Allies Corrupted . | . . . . . . . . . . Allies Melted . | . . . . . . . . . . Intel | -11 -10 -10 -10 -9 -8 -7 -7 -7 -7 ------- Run | Yrd Mat Min Exi Min Mat Fac Low Low Zio Active Infowar (turns) . | . . . . . . . . . . Robot Analysis Total . | . . . . . . . . . . Derelict Logs Recovered 3 | . . 1 . . . . . 1 1 Drone Launches 7 | . . . 7 . . . . . . Drone Recoveries 6 | . . . 6 . . . . . . Exploration | -11 -10 -10 -10 -9 -8 -7 -7 -7 -7 ------------- Run | Yrd Mat Min Exi Min Mat Fac Low Low Zio Turns Passed 9184 | 63 902 185 1913 170 1566 1381 454 373 2177 Spaces Moved 5205 | 37 492 156 1207 85 942 818 221 198 1049 Core 2 | 2 . . . . . . . . . Treads 290 | 35 255 . . . . . . . . Legs 4213 | . . . 900 85 942 818 221 198 1049 Wheels 686 | . 237 156 293 . . . . . . Hover 14 | . . . 14 . . . . . . Flight . | . . . . . . . . . . Fastest Speed 50 | 50 95 95 80 120 120 123 183 183 140 Average Speed 147 | 154 136 95 132 121 123 150 183 183 185 Slowest Speed 470 | 160 240 95 190 190 190 189 183 183 470 Overloaded Moves . | . . . . . . . . . . Propulsion Burnouts . | . . . . . . . . . . Robots Hopped . | . . . . . . . . . . Potential Cave-ins . | . . . . . . . . . . Cave-ins Triggered . | . . . . . . . . . . Exploration Rate (%) 50 | 4 83 30 88 23 80 24 47 44 86 Regions Visited 9 Branch Regions 6 Pre-discovered Areas 3 | . . . 1 . . . . 1 1 Known Exits Taken 2 | . . . . . 1 1 . . . Unknown Exits Taken 7 | 1 1 1 1 1 . . 1 1 . Scrap Searched 8 | . . . . 1 . . 1 1 5 Spaces Dug 1 | . . . . . 1 . . . . Terrain Destroyed 74 | . . . 11 9 13 5 . . 36 Melee . | . . . . . . . . . . Projectile 22 | . . . 9 . 7 5 . . 1 AOE 49 | . . . . 9 5 . . . 35 Terrain Rammed . | . . . . . . . . . . Walls Destroyed . | . . . . . . . . . . Machines Disabled . | . . . . . . . . . . Actions | -11 -10 -10 -10 -9 -8 -7 -7 -7 -7 --------- Run | Yrd Mat Min Exi Min Mat Fac Low Low Zio Total 6078 | 41 614 182 1406 116 1196 910 241 201 1171 Wait 226 | . 22 17 74 4 91 15 . . 3 Move 5196 | 36 491 155 1206 84 941 817 220 197 1049 Hop . | . . . . . . . . . . Pick Up 63 | . 9 1 17 1 12 16 1 . 6 Fast Attach 46 | 5 7 2 7 . 8 4 1 . 12 Attach 40 | . . . 5 3 13 5 1 . 13 Detach 8 | . . 1 3 . 2 . . . 2 Swap 45 | . 2 . 16 2 11 2 1 . 11 Drop 49 | . 4 1 14 . 8 13 2 . 7 Fire 395 | . 79 5 57 22 110 38 15 4 65 Melee 10 | . . . 7 . . . . . 3 Ram . | . . . . . . . . . . Kick . | . . . . . . . . . . Crush . | . . . . . . . . . . Escape Stasis . | . . . . . . . . . . Rewire . | . . . . . . . . . . Trap . | . . . . . . . . . . Miscellaneous . | . . . . . . . . . . Route ------- -11/Scrapyard -10/Materials (discovered 4 exits: [*Mat x3] / *Min) -10/Mines (discovered 2 exits: [*Mat] / *Exi) -10/Exiles -9/Mines (discovered 2 exits: *Mat x2) -8/Materials (discovered 3 exits: *Fac x3) -7/Factory (discovered 6 exits: *Fac x4 / [*Sto] / *Low) -7/Lower Caves -7/Lower Caves -7/Zion (discovered 1 exit: [*Pro]) History --------- Turn | Location | Event 9 | -11/Scrapyard | Discovered new exit (range 15) 64 | -11/Scrapyard | Entered Materials 259 | -10/Materials | Discovered new exit (range 14) 299 | -10/Materials | Discovered new exit (range 5) 312 | -10/Materials | Build established: Mutant 642 | -10/Materials | Discovered new exit (range 4) 802 | -10/Materials | Discovered new exit (range 3) 892 | -10/Materials | Central database locked down 966 | -10/Materials | Entered Mines 1038 | -10/Mines | Discovered new exit (range 10) 1046 | -10/Mines | Found the Drone Emporium 1052 | -10/Mines | Found Prototype Device 1052 | -10/Mines | Identified Thief Drone Bay 1113 | -10/Mines | Learned Materials terminal intel 1133 | -10/Mines | Build established: Scavenger-Mutant 1140 | -10/Mines | Deemed a non-threat by the Exiles lab entrance 1141 | -10/Mines | Discovered new exit (range 5) 1151 | -10/Mines | Entered Exiles 1151 | -10/Exiles | Accompanied by 2 allies 1181 | -10/Exiles | Led the pair of lost Derelicts to a safe place 1203 | -10/Exiles | Met 8R-AWN 1217 | -10/Exiles | Met EX-HEX 1242 | -10/Exiles | Met EX-BIN 1254 | -10/Exiles | Aligned with FarCom system 1255 | -10/Exiles | Given EX-Vault access code 1277 | -10/Exiles | Opened EX-Vault 1289 | -10/Exiles | Found Prototype Slashing Weapon 1308 | -10/Exiles | Warned to stay clear of 0b10 Research branches 1334 | -10/Exiles | Met EX-DEC 1343 | -10/Exiles | Learned location of Zion (-7) 1417 | -10/Exiles | Attacked by the Exiles 1526 | -10/Exiles | Found 8R-AWN's Boregun 1527 | -10/Exiles | Found AS-neutralizer No. 17b 1530 | -10/Exiles | Found 8R-AWN's Boregun 1611 | -10/Exiles | Build established: Mutant 1633 | -10/Exiles | Lost 3 parts (1p1n1w) 2180 | -10/Exiles | Identified Longsword +1 2399 | -10/Exiles | Destroyed 8R-AWN 2523 | -10/Exiles | Found Prototype Protection 2528 | -10/Exiles | Found Prototype Processor 2600 | -10/Exiles | Destroyed EX-HEX 2621 | -10/Exiles | Destroyed EX-DEC 2641 | -10/Exiles | Found Prototype Processor 3050 | -10/Exiles | Discovered new exit (range 14) 3064 | -10/Exiles | Entered Mines 3123 | -9/Mines | Core integrity fell below 50% 3152 | -9/Mines | Destroyed 8 combat bots 3158 | -9/Mines | Lost 3 parts (2p1w) 3164 | -9/Mines | Discovered new exit (range 16) 3195 | -9/Mines | Discovered new exit (range 16) 3234 | -9/Mines | Entered Materials 3234 | -8/Materials | Evolved 4 slots: Propulsion x1, Utility x3 3235 | -8/Materials | Loaded intel: 12 terminal locations 3235 | -8/Materials | Identified 8R-AWN's Armor/EX 3237 | -8/Materials | Identified Exp. Targeting Computer 3238 | -8/Materials | Identified Exp. Core Analyzer 3681 | -8/Materials | Lost 3 parts (1u2w) 3867 | -8/Materials | Discovered new exit (range 16) 4260 | -8/Materials | Discovered new exit (range 4) 4626 | -8/Materials | Identified exit to Factory 4673 | -8/Materials | Learned location of 1 exit from Extension 4747 | -8/Materials | Learned location of 1 exit from Recycling 4769 | -8/Materials | Learned Factory emergency access door positions 4794 | -8/Materials | Learned Factory stockpile data 4800 | -8/Materials | Entered Factory 4800 | -7/Factory | Evolved 2 slots: Power x1, Utility x1 4801 | -7/Factory | Identified exit to Factory 4801 | -7/Factory | Identified exit to Lower Caves 4840 | -7/Factory | Build established: Scavenger-Mutant 5177 | -7/Factory | Discovered new exit (range 4) 5474 | -7/Factory | Build established: Mutant 6181 | -7/Factory | Entered Lower Caves 6585 | -7/Lower Caves | Discovered new exit (range 10) 6635 | -7/Lower Caves | Entered another Lower Caves area 6999 | -7/Lower Caves | Discovered new exit (range 3) 7008 | -7/Lower Caves | Entered Zion 7085 | -7/Zion | System corruption cleaned by Quarantine Array 7139 | -7/Zion | Found Prototype Launcher 7139 | -7/Zion | Identified Rocket Array 7313 | -7/Zion | Discovered new exit (range 12) 7447 | -7/Zion | Received a visual enhancement algorithm 7533 | -7/Zion | Given A8's code to call for help 7610 | -7/Zion | Given the Hacking Drone Bay 7610 | -7/Zion | Found Prototype Device 8223 | -7/Zion | Learned location of Quarantine (-3) 8739 | -7/Zion | Met Imprinter 8752 | -7/Zion | Attacked by Zionites 8769 | -7/Zion | Identified Hacking Drone Bay 8798 | -7/Zion | Lost 4 parts (1n2u1w) 8872 | -7/Zion | Destroyed Imprinter 8892 | -7/Zion | Extracted access codes from Imprinter's data core 8906 | -7/Zion | Core integrity fell below 50% 8909 | -7/Zion | Lost 6 parts (2p2n2u) 8988 | -7/Zion | Core integrity fell below 20% 9019 | -7/Zion | Lost 9 parts (1p3n1u4w) 9185 | -7/Zion | Destroyed by YH-UFA(z) with Makeshift Shrapnel Gun Last Messages --------------- cycle. 09151_ Mak. Power Source destroyed. F3-61K(z) bursts out of the Twisted Machinery. 09154_ F3-61K(z) pulls a Mak. Sword out of the Twisted Machinery. 09155_ F3-61K(z) destroyed. 09156_ System corrupted: Matter fused (-10). 09158_ 5W-H3H(z) destroyed. 09158_ Switching to secondary target: FG-7WB(z). 09158_ FG-7WB(z) destroyed. 09163_ Acquired 17 matter. 09168_ YH-UFA(z) pulls a Mak. Shrapnel Gun out of the Twisted Machinery. 09171_ Mak. Leg destroyed. 09176_ FZ-309(z) pulls a Mak. Spear out of the Twisted Machinery. 09179_ Beamcaster destroyed. 09181_ Hpw. Field Laser destroyed. 09183_ System corrupted: Component data lost. WV-I0Y(z) bursts out of the Twisted Machinery. Map ----- +----------------------------------------------------+ | ?????????????????????????????????????????????????? | | ?????????????????????????????????????????????????? | | ?????????????????????????????????????????????????? | | ?????????????????????????????????????????????????? | | ?????????????????????????????????????????????????? | | ?????????????????????????????????????????????????? | | ?????????????????????????????????????????????????? | | ?????????????????????????????????????????????????? | | ?????????????????????????????????????????????????? | | ?????????????????????????#######?????????????????? | | ?????????????????????????# "["]#?????????????????? | | ?????????????????????????#/[ [ #?????????????????? | | ?????????????????????????#[" "|#?????????????????? | | ?????????????????????????#"" ""####??????????????? | | ??????????????????????????# ###"#??????###?????? | | ??????????????###?##?????## # ""##?####""####### | | ??????????????#"##"#?????# ""###"#""""#"""#" | | ??????????????#"""#?###?## "" """"""""""#" " " | | ??????????????" "###"###"""" ""# | | ??????????????# """"""""""" """" | | ?????????????## """""""""" """ "#""" | | ?????????????" """ "" """" | | ?????????????" = "" | | ?????????????# """""" % | | ????????????#""""""""""" ! "" "" " | | ???????????#"""""#"#"#"""@z """ """ """ | | ???????????###""#"######" "### """" ""# | | ?????????????######???##"" ""#?#"#"""#"" """ | | ??????????????????????#""" """"""####""##"" ""# | | ??????????????????????##"" z z""""####""#"##"" """ | | ??????????????????????##" """##"####""##""" " | | ??????????????????????#"" ""##""""""""""" " | | ??????????????????????##" """""" | | ???????????????????##### "" | | ????????????????#### "!"[ | | ????????????????" "##""%= """ " ""#" | | ??????????????# " ""== """"" " " """" | | ??????????????#! =%* """"" "" """" | | ??????????????# """## = """ "" ""#""" | | ??????????????##"""# "" """"#"# | | ???????????????#####" """" """""## | | ???????????????????#" """" "####?? | | ??????????????????##"" "" ""##??? | | ????????????????###""" "" """#??? | | ????????????????# " """ """##??? | | ????????????????## # """ """##???? | | ????????????????# " ## "" """#????? | | ????????????????## ##""" """#????? | | ?????????????????# ##"" ""##????? | | ?????????????????# #""""" ""#?????? | +----------------------------------------------------+ Best States ------------- Heat Dissipation 89 Energy Generation 29 Energy Capacity 1000 Matter Stores 300 Matter Capacity 300 Sight Range 16 Terrain Scan Density 210 Armor Coverage 225 Utility Shielding 66 Weapon Cycling 25 Evasion (%) 55 Targeting Accuracy 12 Core Analysis 8 Recoil Reduction 2 Energy Filtering 30 Item Schematics ----------------- Med. Reflective Plating | -7/Zion | Archive System Guard | -7/Zion | Archive Weapon Cycler | -7/Zion | Archive Gauss Rifle | -7/Zion | Archive Imp. Reaction Control System | -7/Zion | Archive Arm. Leg | -7/Zion | Archive Hvy. Laser | -7/Zion | Archive Variable Charge Gun | -7/Zion | Archive Adv. Drone Bay | -7/Zion | Archive Adv. Terrain Scan Processor | -7/Zion | Archive Adv. Terrain Scanner | -7/Zion | Archive Hpw. Shock Rifle | -7/Zion | Archive Remote Datajack | -7/Zion | Archive Imp. Shield Generator | -7/Zion | Archive Fusion Compressor | -7/Zion | Archive Robot Schematics ------------------ S-27 Virus | -7/Zion | Archive B-48 Gladiator | -7/Zion | Archive Fabricated ------------ Nothing Repaired ---------- Nothing Alien Tech Used ----------------- None Achievements -------------- Monster Challenges ------------ None Game ------ Seed ShockRiotDesublimator Manual? 0 Play Time 01:03:23 Cumulative 190.9 hours Start 2025.08.16 @ 20:59:54 End 2025.08.16 @ 22:00:27 Sessions 1 Manual Loads 0 Difficulty Rogue Special Mode None Game No. 160 Rogue 160 Adventurer 0 Explorer 0 Win Type - Total 5 Types 3/0/1/1/0/0/0/0/0/0 Lore% 79 Gallery% 71 Achievement% 66 Wizard Run 0 Options --------- Layout 1 ASCII 0 Keyboard 0 Movement Mouse Keybinds 0 Fullscreen 1 Font 24/Smallcaps Map View 50x35 Zoom Use 0% Tactical HUD 1 Map Filters NONE Filters NONE Steam 1 RUN: 2f8a11ff-1e31-42a7-a9ee-f5139fc02491